fUST/lending_fUST_20250713
["ID","MTS","AMOUNT","RATE_DAILY","PERIOD"]
[371730079,1752405053509,-151.0,0.00019178,2]
[371730080,1752405053518,-460.0,0.00019178,2]
[371730081,1752405053528,-543.41,0.00019178,2]
[371730082,1752405053537,-460.0,0.00019178,2]
[371730083,1752405053546,-581.34,0.00019178,2]
[371730084,1752405053556,-806.05,0.00019178,2]
[371730085,1752405053565,-460.0,0.00019178,2]
[371730086,1752405053574,-2045.15,0.00019178,2]
[371730087,1752405053584,-460.0,0.00019178,2]
[371730088,1752405053594,-1764.26,0.00019178,2]
[371730089,1752405053603,-2234.96,0.00019178,2]
[371730090,1752405053613,-460.0,0.00019178,2]
[371730091,1752405053622,-460.0,0.00019178,2]
[371730092,1752405053631,-747.33,0.00019178,2]
[371730093,1752405053641,-372.756912,0.00019178,2]
[371730094,1752405053650,-666.0,0.00019178,2]
[371730095,1752405053659,-151.0,0.00019182,2]
[371730096,1752405053668,-151.0,0.00019182,2]
[371730097,1752405053678,-151.0,0.00019182,2]
[371730098,1752405053687,-151.0,0.00019182,2]
[371730099,1752405053697,-3435.67523137,0.00019189,2]
[371730100,1752405053706,-260.0,0.00019241,2]
[371730101,1752405053716,-1000.0,0.00019298,2]
[371730102,1752405053725,-1000.0,0.00019298,2]
[371730103,1752405053735,-246.529174,0.00019329,2]
[371730104,1752405053744,-246.529174,0.00019329,2]
[371730105,1752405053755,-151.0,0.00019329,2]
[371730106,1752405053764,-151.0,0.00019329,2]
[371730107,1752405053774,-100000.0,0.00019329,2]
[371730108,1752405053783,-3548.59151262,0.00019383,2]
[371730109,1752405053793,-1300.0,0.0001942,2]
[371730110,1752405053802,-151.0,0.00019452,2]
[371730111,1752405053811,-151.0,0.00019452,2]
[371730112,1752405053821,-579.15,0.00019452,2]
[371730113,1752405053831,-416.47268096,0.00019452,2]
[371730114,1752405053841,-483.55,0.00019452,2]
[371730115,1752405053850,-533.72,0.00019452,2]
[371730116,1752405053860,-275.434605,0.00019452,2]
[371730117,1752405053869,-275.434605,0.00019452,2]
[371730118,1752405053878,-571.64,0.00019452,2]
[371730119,1752405053888,-151.0,0.00019452,2]
[371730120,1752405053898,-212.92219118,0.00019452,2]
[371730121,1752405053907,-460.0,0.00019452,2]
[371730122,1752405053917,-460.0,0.00019452,2]
[371730123,1752405053926,-460.0,0.00019452,2]
[371730124,1752405053936,-1854.12,0.00019452,2]
[371730125,1752405053946,-1041.88,0.00019452,2]
[371730126,1752405053955,-528.86,0.00019452,2]
[371730127,1752405053965,-649.01,0.00019452,2]
[371730128,1752405053974,-514.89,0.00019452,2]
[371730129,1752405053984,-460.0,0.00019452,2]
[371730130,1752405053994,-460.0,0.00019452,2]
[371730131,1752405054005,-460.0,0.00019452,2]
[371730132,1752405054015,-460.0,0.00019452,2]
[371730133,1752405054024,-460.0,0.00019452,2]
[371730134,1752405054034,-244.26,0.00019452,2]
[371730135,1752405054044,-469.79,0.00019452,2]
[371730136,1752405054054,-813.62,0.00019452,2]
[371730137,1752405054064,-460.0,0.00019452,2]
[371730138,1752405054074,-553.71,0.00019452,2]
[371730139,1752405054084,-968.58,0.00019452,2]
[371730140,1752405054093,-460.0,0.00019452,2]
[371730141,1752405054103,-1228.5,0.00019452,2]
[371730142,1752405054112,-460.0,0.00019452,2]
[371730143,1752405054121,-2317.57,0.00019452,2]
[371730144,1752405054131,-460.0,0.00019452,2]
[371730145,1752405054216,-460.0,0.00019452,2]
[371730146,1752405054235,-543.41,0.00019452,2]
[371730147,1752405054244,-460.0,0.00019452,2]
[371730148,1752405054257,-581.34,0.00019452,2]
[371730149,1752405054267,-806.05,0.00019452,2]
[371730150,1752405054276,-460.0,0.00019452,2]
[371730151,1752405054286,-2045.15,0.00019452,2]
[371730152,1752405054295,-460.0,0.00019452,2]
[371730153,1752405054305,-1764.26,0.00019452,2]
[371730154,1752405054315,-2234.96,0.00019452,2]
[371730155,1752405054324,-460.0,0.00019452,2]
[371730156,1752405054335,-460.0,0.00019452,2]
[371730157,1752405054345,-747.33,0.00019452,2]
[371730158,1752405054354,-151.0,0.00019693,2]
[371730159,1752405054364,-151.0,0.00019693,2]
[371730160,1752405054374,-151.0,0.00019693,2]
[371730161,1752405054383,-3548.59151262,0.00019693,2]
[371730162,1752405054393,-151.0,0.00019726,2]
[371730163,1752405054403,-151.0,0.00019726,2]
[371730164,1752405054413,-151.0,0.00019726,2]
[371730165,1752405054422,-151.0,0.00019726,2]
[371730166,1752405054432,-579.15,0.00019726,2]
[371730167,1752405054442,-533.72,0.00019726,2]
[371730168,1752405054451,-571.64,0.00019726,2]
[371730169,1752405054460,-460.0,0.00019726,2]
[371730170,1752405054470,-460.0,0.00019726,2]
[371730171,1752405054479,-460.0,0.00019726,2]
[371730172,1752405054489,-1854.12,0.00019726,2]
[371730173,1752405054499,-1041.88,0.00019726,2]
[371730174,1752405054508,-528.86,0.00019726,2]
[371730175,1752405054518,-649.01,0.00019726,2]
[371730176,1752405054527,-514.89,0.00019726,2]
[371730177,1752405054537,-460.0,0.00019726,2]
[371730178,1752405054547,-151.0,0.00019726,2]
[371730179,1752405054556,-460.0,0.00019726,2]
[371730180,1752405054565,-460.0,0.00019726,2]
[371730181,1752405054575,-460.0,0.00019726,2]
[371730182,1752405054584,-460.0,0.00019726,2]
[371730183,1752405054594,-469.79,0.00019726,2]
[371730184,1752405054604,-813.62,0.00019726,2]
[371730185,1752405054614,-460.0,0.00019726,2]
[371730186,1752405054624,-553.71,0.00019726,2]
[371730187,1752405054634,-968.58,0.00019726,2]
[371730188,1752405054643,-460.0,0.00019726,2]
[371730189,1752405054653,-1228.5,0.00019726,2]
[371730190,1752405054662,-460.0,0.00019726,2]
[371730191,1752405054671,-2317.57,0.00019726,2]
[371730192,1752405054681,-460.0,0.00019726,2]
[371730193,1752405054691,-151.450001,0.00019726,2]
[371730194,1752405054700,-460.0,0.00019726,2]
[371730195,1752405054709,-543.41,0.00019726,2]
[371730196,1752405054719,-460.0,0.00019726,2]
[371730197,1752405054728,-581.34,0.00019726,2]
[371730198,1752405054738,-806.05,0.00019726,2]
[371730199,1752405054747,-495.55339422,0.00019726,2]
[371730200,1752405054758,-2045.15,0.00019726,2]
[371730201,1752405054767,-460.0,0.00019726,2]
[371730202,1752405054778,-1764.26,0.00019726,2]
[371730203,1752405054787,-2234.96,0.00019726,2]
[371730204,1752405054797,-460.0,0.00019726,2]
[371730205,1752405054807,-460.0,0.00019726,2]
[371730206,1752405054817,-747.33,0.00019726,2]
[371730207,1752405054827,-360.0,0.00019789,2]
[371730208,1752405054836,-500.0,0.00019799,2]
[371730209,1752405054846,-500.0,0.00019799,2]
[371730210,1752405054856,-1029.26768664,0.00019799,2]
[371730211,1752405054865,-500.0,0.00019799,2]
[371730212,1752405054875,-238.22820139,0.00019799,2]
[371730213,1752405054884,-1029.26768664,0.00019799,2]
[371730214,1752405054894,-500.0,0.00019799,2]
[371730215,1752405054904,-1029.26768664,0.00019799,2]
[371730216,1752405054914,-500.0,0.00019799,2]
[371730217,1752405054923,-1029.26768664,0.00019799,2]
[371730218,1752405054932,-500.0,0.00019799,2]
[371730219,1752405054942,-1029.26768664,0.00019799,2]
[371730220,1752405054951,-1029.26768664,0.00019799,2]
[371730221,1752405054961,-1029.26768664,0.00019799,2]
[371730222,1752405054971,-452.50518485,0.00019799,2]
[371730223,1752405054982,-500.0,0.00019799,2]
[371730224,1752405054992,-1029.26768664,0.00019799,2]
[371730225,1752405055002,-500.0,0.00019799,2]
[371730226,1752405055011,-1029.26768664,0.00019799,2]
[371730227,1752405055020,-1029.26768664,0.00019799,2]
[371730228,1752405055029,-500.0,0.00019799,2]
[371730229,1752405055039,-500.0,0.00019799,2]
[371730230,1752405055049,-500.0,0.00019799,2]
[371730231,1752405055059,-1029.26768664,0.00019799,2]
[371730232,1752405055069,-1029.26768664,0.00019799,2]
[371730233,1752405055079,-1029.26768664,0.00019799,2]
[371730234,1752405055088,-1029.26768664,0.00019799,2]
[371730235,1752405055097,-500.0,0.00019799,2]
[371730236,1752405055107,-1029.26768664,0.00019799,2]
[371730237,1752405055116,-1029.26768664,0.00019799,2]
[371730238,1752405055125,-500.0,0.00019799,2]
[371730239,1752405055135,-1029.26768664,0.00019799,2]
[371730240,1752405055145,-500.0,0.00019799,2]
[371730241,1752405055155,-500.0,0.00019799,2]
[371730242,1752405055165,-1029.26768664,0.00019799,2]
[371730243,1752405055175,-500.0,0.00019799,2]
[371730244,1752405055187,-500.0,0.00019799,2]
[371730245,1752405055197,-1049.85304038,0.00019799,2]
[371730246,1752405055206,-1049.85304038,0.00019799,2]
[371730247,1752405055215,-1049.85304038,0.00019799,2]
[371730248,1752405055226,-1049.85304038,0.00019799,2]
[371730249,1752405055235,-1049.85304038,0.00019799,2]
[371730250,1752405055244,-350.0,0.00019799,2]
[371730251,1752405055257,-1049.85304038,0.00019799,2]
[371730252,1752405055267,-1049.85304038,0.00019799,2]
[371730253,1752405055279,-1049.85304038,0.00019799,2]
[371730254,1752405055289,-1049.85304038,0.00019799,2]
[371730255,1752405055299,-1049.85304038,0.00019799,2]
[371730256,1752405055308,-17379.31,0.000198,2]
[371730257,1752405055318,-500.0,0.00019846,2]
[371730258,1752405055327,-441.5174371,0.00019846,2]
[371730259,1752405055338,-151.0,0.00019875,2]
[371730260,1752405055348,-151.0,0.00019875,2]
[371730261,1752405055357,-236.993936,0.00019875,2]
[371730262,1752405055366,-579.15,0.0002,2]
[371730263,1752405055376,-533.72,0.0002,2]
[371730264,1752405055385,-571.64,0.0002,2]
[371730265,1752405055394,-460.0,0.0002,2]
[371730266,1752405055404,-460.0,0.0002,2]
[371730267,1752405055413,-460.0,0.0002,2]
[371730268,1752405055422,-1854.12,0.0002,2]
[371730269,1752405055432,-1041.88,0.0002,2]
[371730270,1752405055442,-528.86,0.0002,2]
[371730271,1752405055451,-649.01,0.0002,2]
[371730272,1752405055462,-514.89,0.0002,2]
[371730273,1752405055471,-460.0,0.0002,2]
[371730274,1752405055481,-460.0,0.0002,2]
[371730275,1752405055492,-460.0,0.0002,2]
[371730276,1752405055501,-460.0,0.0002,2]
[371730277,1752405055511,-460.0,0.0002,2]
[371730278,1752405055521,-469.79,0.0002,2]
[371730279,1752405055530,-813.62,0.0002,2]
[371730280,1752405055540,-460.0,0.0002,2]
[371730281,1752405055550,-553.71,0.0002,2]
[371730282,1752405055559,-968.58,0.0002,2]
[371730283,1752405055569,-460.0,0.0002,2]
[371730284,1752405055579,-1228.5,0.0002,2]
[371730285,1752405055589,-2317.57,0.0002,2]
[371730286,1752405055598,-460.0,0.0002,2]
[371730287,1752405055607,-460.0,0.0002,2]
[371730288,1752405055617,-543.41,0.0002,2]
[371730289,1752405055627,-460.0,0.0002,2]
[371730290,1752405055638,-581.34,0.0002,2]
[371730291,1752405055650,-1769.22730103,0.0002,4]
[371730292,1752405055660,-806.05,0.0002,2]
[371730293,1752405055670,-2045.15,0.0002,2]
[371730294,1752405055680,-460.0,0.0002,2]
[371730295,1752405055690,-1764.26,0.0002,2]
[371730296,1752405055700,-2234.96,0.0002,2]
[371730297,1752405055709,-460.0,0.0002,2]
[371730298,1752405055719,-460.0,0.0002,2]
[371730299,1752405055729,-747.33,0.0002,2]
[371730300,1752405055739,-3548.59151262,0.00020003,2]
[371730301,1752405055748,-3435.67523137,0.00020127,2]
[371730302,1752405055758,-505.601113,0.00020187,2]
[371730303,1752405055767,-3116.57,0.00020226,2]
[371730304,1752405055777,-5000.0,0.00020248,2]
[371730305,1752405055786,-7000.0,0.00020268,2]
[371730306,1752405055796,-579.15,0.00020273,2]
[371730307,1752405055805,-533.72,0.00020273,2]
[371730308,1752405055817,-571.64,0.00020273,2]
[371730309,1752405055827,-460.0,0.00020273,2]
[371730310,1752405055836,-460.0,0.00020273,2]
[371730311,1752405055846,-460.0,0.00020273,2]
[371730312,1752405055855,-1854.12,0.00020273,2]
[371730313,1752405055865,-1041.88,0.00020273,2]
[371730314,1752405055876,-528.86,0.00020273,2]
[371730315,1752405055885,-649.01,0.00020273,2]
[371730316,1752405055895,-514.89,0.00020273,2]
[371730317,1752405055904,-460.0,0.00020273,2]
[371730318,1752405055914,-460.0,0.00020273,2]
[371730319,1752405055924,-460.0,0.00020273,2]
[371730320,1752405055934,-460.0,0.00020273,2]
[371730321,1752405055944,-460.0,0.00020273,2]
[371730322,1752405055954,-469.79,0.00020273,2]
[371730323,1752405055964,-813.62,0.00020273,2]
[371730324,1752405055974,-553.71,0.00020273,2]
[371730325,1752405055984,-460.0,0.00020273,2]
[371730326,1752405055994,-968.58,0.00020273,2]
[371730327,1752405056003,-460.0,0.00020273,2]
[371730328,1752405056014,-1228.5,0.00020273,2]
[371730329,1752405056023,-2317.57,0.00020273,2]
[371730330,1752405056033,-460.0,0.00020273,2]
[371730331,1752405056043,-460.0,0.00020273,2]
[371730332,1752405056052,-543.41,0.00020273,2]
[371730333,1752405056062,-460.0,0.00020273,2]
[371730334,1752405056072,-581.34,0.00020273,2]
[371730335,1752405056081,-806.05,0.00020273,2]
[371730336,1752405056167,-2045.15,0.00020273,2]
[371730337,1752405056191,-460.0,0.00020273,2]
[371730338,1752405056201,-1764.26,0.00020273,2]
[371730339,1752405056211,-2234.96,0.00020273,2]
[371730340,1752405056220,-460.0,0.00020273,2]
[371730341,1752405056230,-460.0,0.00020273,2]
[371730342,1752405056239,-747.33,0.00020273,2]
[371730343,1752405056249,-9000.0,0.00020296,2]
[371730344,1752405056260,-2000.0,0.00020311,2]
[371730345,1752405056269,-3548.59151262,0.00020314,3]
[371730346,1752405056278,-460.0,0.00020337,2]
[371730347,1752405056288,-151.0,0.00020392,2]
[371730348,1752405056303,-151.0,0.00020392,2]
[371730349,1752405056312,-151.0,0.00020392,2]
[371730350,1752405056322,-151.0,0.00020392,2]
[371730351,1752405056332,-154.069854,0.00020392,2]
[371730352,1752405056341,-500.0,0.00020392,2]
[371730353,1752405056351,-502.3432928,0.00020392,2]
[371730354,1752405056360,-1300.0,0.00020516,2]
[371730355,1752405056370,-151.0,0.00020547,2]
[371730356,1752405056379,-151.0,0.00020547,2]
[371730357,1752405056388,-579.15,0.00020547,2]
[371730358,1752405056397,-246.529174,0.00020547,2]
[371730359,1752405056407,-246.529174,0.00020547,2]
[371730360,1752405056416,-533.72,0.00020547,2]
[371730361,1752405056426,-571.64,0.00020547,2]
[371730362,1752405056436,-460.0,0.00020547,2]
[371730363,1752405056446,-460.0,0.00020547,2]
[371730364,1752405056455,-460.0,0.00020547,2]
[371730365,1752405056464,-1854.12,0.00020547,2]
[371730366,1752405056474,-1041.88,0.00020547,2]
[371730367,1752405056484,-528.86,0.00020547,2]
[371730368,1752405056493,-649.01,0.00020547,2]
[371730369,1752405056503,-514.89,0.00020547,2]
[371730370,1752405056512,-460.0,0.00020547,2]
[371730371,1752405056522,-460.0,0.00020547,2]
[371730372,1752405056531,-460.0,0.00020547,2]
[371730373,1752405056540,-460.0,0.00020547,2]
[371730374,1752405056549,-460.0,0.00020547,2]
[371730375,1752405056559,-469.79,0.00020547,2]
[371730376,1752405056569,-813.62,0.00020547,2]
[371730377,1752405056579,-553.71,0.00020547,2]
[371730378,1752405056592,-460.0,0.00020547,2]
[371730379,1752405056607,-968.58,0.00020547,2]
[371730380,1752405056616,-460.0,0.00020547,2]
[371730381,1752405056626,-1228.5,0.00020547,2]
[371730382,1752405056636,-2317.57,0.00020547,2]
[371730383,1752405056646,-460.0,0.00020547,2]
[371730384,1752405056655,-460.0,0.00020547,2]
[371730385,1752405056665,-543.41,0.00020547,2]
[371730386,1752405056674,-460.0,0.00020547,2]
[371730387,1752405056684,-581.34,0.00020547,2]
[371730388,1752405056694,-806.05,0.00020547,2]
[371730389,1752405056704,-2045.15,0.00020547,2]
[371730390,1752405056714,-460.0,0.00020547,2]
[371730391,1752405056723,-1764.26,0.00020547,2]
[371730392,1752405056733,-2234.96,0.00020547,2]
[371730393,1752405056744,-460.0,0.00020547,2]
[371730394,1752405056753,-460.0,0.00020547,2]
[371730395,1752405056763,-747.33,0.00020547,2]
[371730396,1752405056772,-151.0,0.000206,2]
[371730397,1752405056782,-151.0,0.000206,2]
[371730398,1752405056791,-275.434605,0.000206,2]
[371730399,1752405056801,-275.434605,0.000206,2]
[371730400,1752405056810,-151.0,0.000206,2]
[371730401,1752405056821,-225.549012,0.000206,2]
[371730402,1752405056831,-12598.31844336,0.000206,3]
[371730403,1752405056841,-214.29528141,0.000206,3]
[371730404,1752405056851,-3548.59151262,0.00020624,3]
[371730405,1752405056860,-305.058,0.00020688,2]
[371730406,1752405056870,-760.21,0.000207,2]
[371730407,1752405056879,-160.0,0.000207,3]
[371730408,1752405056889,-579.15,0.00020821,2]
[371730409,1752405056898,-533.72,0.00020821,2]
[371730410,1752405056908,-571.64,0.00020821,2]
[371730411,1752405056918,-460.0,0.00020821,2]
[371730412,1752405056928,-460.0,0.00020821,2]
[371730413,1752405056938,-460.0,0.00020821,2]
[371730414,1752405056946,-1854.12,0.00020821,2]
[371730415,1752405056956,-1041.88,0.00020821,2]
[371730416,1752405056965,-528.86,0.00020821,2]
[371730417,1752405056975,-649.01,0.00020821,2]
[371730418,1752405056984,-514.89,0.00020821,2]
[371730419,1752405056994,-196.70412629,0.00020821,2]
[371730420,1752405057003,-460.0,0.00020821,2]
[371730421,1752405057013,-460.0,0.00020821,2]
[371730422,1752405057023,-460.0,0.00020821,2]
[371730423,1752405057032,-460.0,0.00020821,2]
[371730424,1752405057042,-469.79,0.00020821,2]
[371730425,1752405057052,-813.62,0.00020821,2]
[371730426,1752405057062,-553.71,0.00020821,2]
[371730427,1752405057072,-460.0,0.00020821,2]
[371730428,1752405057082,-968.58,0.00020821,2]
[371730429,1752405057091,-460.0,0.00020821,2]
[371730430,1752405057101,-1228.5,0.00020821,2]
[371730431,1752405057111,-2317.57,0.00020821,2]
[371730432,1752405057120,-460.0,0.00020821,2]
[371730433,1752405057129,-460.0,0.00020821,2]
[371730434,1752405057139,-543.41,0.00020821,2]
[371730435,1752405057148,-460.0,0.00020821,2]
[371730436,1752405057158,-581.34,0.00020821,2]
[371730437,1752405057167,-806.05,0.00020821,2]
[371730438,1752405057179,-2045.15,0.00020821,2]
[371730439,1752405057189,-460.0,0.00020821,2]
[371730440,1752405057199,-1764.26,0.00020821,2]
[371730441,1752405057208,-2234.96,0.00020821,2]
[371730442,1752405057218,-460.0,0.00020821,2]
[371730443,1752405057227,-460.0,0.00020821,2]
[371730444,1752405057237,-747.33,0.00020821,2]
[371730445,1752405057247,-580.0,0.00020885,2]
[371730446,1752405057258,-2650.39,0.000209,2]
[371730447,1752405057268,-3548.59151262,0.00020934,4]
[371730448,1752405057277,-590.40244496,0.0002094,2]
[371730449,1752405057287,-151.0,0.00020975,2]
[371730450,1752405057296,-198.0,0.00020975,2]
[371730451,1752405057306,-1000.0,0.00020975,2]
[371730452,1752405057316,-1000.0,0.00020975,2]
[371730453,1752405057329,-1000.0,0.00020975,2]
[371730454,1752405057342,-1000.0,0.00020975,2]
[371730455,1752405057352,-1000.0,0.00020975,2]
[371730456,1752405057361,-25000.0,0.00020975,2]
[371730457,1752405057371,-6194.70942434,0.00020975,2]
[371730458,1752405057480,-312.4999038,0.00020975,2]
[371730459,1752405057492,-5800.405078,0.00020975,2]
[371730460,1752405057501,-207.4,0.00020975,2]
[371730461,1752405057510,-579.15,0.00021095,2]
[371730462,1752405057520,-533.72,0.00021095,2]
[371730463,1752405057529,-571.64,0.00021095,2]
[371730464,1752405057538,-324.025382,0.00021095,2]
[371730465,1752405057550,-135.974618,0.00021095,2]
[371730466,1752405057560,-460.0,0.00021095,2]
[371730467,1752405057569,-460.0,0.00021095,2]
[371730468,1752405057579,-530.4363875,0.00021095,2]
[371730469,1752405057590,-1130.77446522,0.00021095,2]
[371730470,1752405057679,-460.0,0.00018904,2]
[371730471,1752405057688,-460.0,0.00019178,2]
[371730472,1752405057698,-460.0,0.00019452,2]
[371730473,1752405057707,-192.90914728,0.00021095,2]
[371730474,1752405057717,-760.83345796,0.00021095,2]
[371730475,1752405057728,-281.04654204,0.00021095,2]
[371730476,1752405057738,-528.86,0.00021095,2]
[371730477,1752405057747,-235.45856207,0.00021095,2]
[371730478,1752405066828,903.0,0.0001633,2]
[371730488,1752405185861,533.779557,0.00013699,2]
[371730489,1752405207930,400.0,0.0001633,2]
[371730490,1752405243975,158.3334319,0.00015986,2]
[371730491,1752405431760,21944.65901159,0.00015755,2]
[371730492,1752405431789,2955.34098841,0.00015755,2]
[371730533,1752405853188,8320.4621468,0.00015618,2]
[371730577,1752406123330,301.999999,0.00025212,120]
[371730591,1752406199446,532.370635,0.00013699,2]
[371730610,1752406237892,-480.0,0.00016335,2]
[371730612,1752406237903,-3008.2671375,0.00016336,2]
[371730615,1752406237916,-6149.30748079,0.00016336,2]
[371730617,1752406237926,-404.2863958,0.00016338,2]
[371730619,1752406237935,-300.0,0.00016435,2]
[371730621,1752406237945,-509.0,0.00016436,2]
[371730623,1752406237955,-460.0,0.00016438,2]
[371730625,1752406237965,-460.0,0.00016438,2]
[371730627,1752406237974,-604.49506498,0.00016438,2]
[371730628,1752406237984,-460.69438364,0.00016438,2]
[371730629,1752406237994,-460.0,0.00016438,2]
[371730630,1752406238003,-437.76073033,0.00016438,2]
[371730631,1752406238014,-460.0,0.00016438,2]
[371730632,1752406238024,-460.0,0.00016438,2]
[371730635,1752406238034,-164.1,0.00016438,2]
[371730638,1752406238043,-460.0,0.00016438,2]
[371730641,1752406238052,-460.0,0.00016438,2]
[371730643,1752406238063,-460.0,0.00016438,2]
[371730645,1752406238073,-460.0,0.00016438,2]
[371730647,1752406238083,-460.0,0.00016438,2]
[371730649,1752406238093,-460.0,0.00016438,2]
[371730651,1752406238102,-460.0,0.00016438,2]
[371730653,1752406238112,-456.0,0.00016438,2]
[371730655,1752406238123,-460.0,0.00016438,2]
[371730657,1752406238132,-487.02436686,0.00016438,2]
[371730659,1752406238141,-460.0,0.00016438,2]
[371730661,1752406238150,-460.0,0.00016438,2]
[371730663,1752406238161,-460.0,0.00016438,2]
[371730665,1752406238170,-460.0,0.00016438,2]
[371730667,1752406238180,-460.0,0.00016438,2]
[371730669,1752406238191,-460.0,0.00016438,2]
[371730671,1752406238200,-460.0,0.00016438,2]
[371730673,1752406238210,-461.53944402,0.00016438,2]
[371730675,1752406238220,-460.0,0.00016438,2]
[371730677,1752406238229,-460.0,0.00016438,2]
[371730679,1752406238239,-460.0,0.00016438,2]
[371730681,1752406238249,-460.0,0.00016438,2]
[371730683,1752406238259,-460.0,0.00016438,2]
[371730685,1752406238268,-460.0,0.00016438,2]
[371730687,1752406238278,-460.0,0.00016438,2]
[371730689,1752406238287,-460.0,0.00016438,2]
[371730691,1752406238297,-460.0,0.00016438,2]
[371730693,1752406238309,-438.37076212,0.00016438,2]
[371730695,1752406238320,-460.0,0.00016438,2]
[371730697,1752406238331,-460.0,0.00016438,2]
[371730700,1752406238342,-460.0,0.00016438,2]
[371730702,1752406238356,-460.0,0.00016438,2]
[371730704,1752406238366,-460.0,0.00016438,2]
[371730706,1752406238376,-460.0,0.00016438,2]
[371730708,1752406238386,-460.0,0.00016438,2]
[371730710,1752406238395,-460.0,0.00016438,2]
[371730712,1752406238405,-460.0,0.00016438,2]
[371730714,1752406238415,-460.0,0.00016438,2]
[371730716,1752406238426,-460.0,0.00016438,2]
[371730718,1752406238435,-460.0,0.00016438,2]
[371730720,1752406238445,-460.0,0.00016438,2]
[371730722,1752406238455,-604.45789562,0.00016438,2]
[371730724,1752406238465,-460.0,0.00016438,2]
[371730726,1752406238475,-460.0,0.00016438,2]
[371730729,1752406238487,-460.0,0.00016438,2]
[371730731,1752406238496,-460.0,0.00016438,2]
[371730733,1752406238506,-460.0,0.00016438,2]
[371730735,1752406238516,-460.0,0.00016438,2]
[371730737,1752406238525,-460.0,0.00016438,2]
[371730738,1752406238534,-460.0,0.00016438,2]
[371730741,1752406238544,-463.04041067,0.00016438,2]
[371730743,1752406238554,-460.0,0.00016438,2]
[371730745,1752406238566,-460.0,0.00016438,2]
[371730746,1752406238576,-460.0,0.00016438,2]
[371730749,1752406238586,-460.0,0.00016438,2]
[371730751,1752406238596,-460.0,0.00016438,2]
[371730753,1752406238606,-460.0,0.00016438,2]
[371730755,1752406238616,-460.0,0.00016438,2]
[371730757,1752406238625,-460.0,0.00016438,2]
[371730759,1752406238635,-460.0,0.00016438,2]
[371730761,1752406238645,-460.0,0.00016438,2]
[371730763,1752406238655,-460.0,0.00016438,2]
[371730765,1752406238665,-460.0,0.00016438,2]
[371730767,1752406238675,-460.0,0.00016438,2]
[371730769,1752406238685,-460.0,0.00016438,2]
[371730771,1752406238695,-460.0,0.00016438,2]
[371730773,1752406238705,-560.0,0.00016438,2]
[371730775,1752406238715,-171.8115677,0.00016438,2]
[371730777,1752406238724,-460.0,0.00016438,2]
[371730779,1752406238734,-193.3234378,0.00016438,2]
[371730781,1752406238744,-460.0,0.00016438,2]
[371730784,1752406238754,-491.49,0.00016438,2]
[371730786,1752406238764,-460.0,0.00016438,2]
[371730788,1752406238773,-460.0,0.00016438,2]
[371730790,1752406238783,-460.0,0.00016438,2]
[371730792,1752406238792,-284.13731635,0.00016438,2]
[371730795,1752406238816,-183.568206,0.00016438,2]